fUST/lending_fUST_20250718
["ID","MTS","AMOUNT","RATE_DAILY","PERIOD"]
[372944095,1752815470178,-181.097733,0.000249,7]
[372944096,1752815470188,-152.308175,0.000249,7]
[372944097,1752815470198,-151.0,0.000249,7]
[372944098,1752815470208,-151.0,0.000249,7]
[372944099,1752815470218,-151.0,0.000249,7]
[372944100,1752815470227,-151.189393,0.000249,7]
[372944101,1752815470237,-151.0,0.000249,7]
[372944102,1752815470246,-151.0,0.000249,7]
[372944103,1752815470255,-151.0,0.000249,7]
[372944104,1752815470266,-151.0,0.000249,7]
[372944105,1752815470275,-25237.10047576,0.000249,2]
[372944107,1752815593333,166.0,0.000278,120]
[372944108,1752815964114,307.721205,0.00013699,2]
[372944115,1752816209323,1200.0,0.00016073,2]
[372944116,1752816225350,966.37265979,0.00016073,2]
[372944117,1752816339125,5543.06335593,0.00015363,2]
[372944118,1752816339151,19356.93664407,0.00015363,2]
[372944121,1752816447147,-652.47,0.00016228,3]
[372944122,1752816447169,-350.0,0.00016228,3]
[372944123,1752816447191,-885.09730583,0.00016235,2]
[372944124,1752816464266,10000.0,0.00023,30]
[372944139,1752816632568,-160.0,0.00016234,2]
[372944140,1752816632578,-199.9422,0.00016235,2]
[372944141,1752816632589,-114.96049417,0.00016235,2]
[372944143,1752816632598,-300.0,0.00016236,2]
[372944145,1752816632608,-300.0,0.00016236,2]
[372944147,1752816632619,-1200.0,0.00016236,2]
[372944150,1752816632629,-238.38318746,0.00016237,2]
[372944152,1752816632638,-268.18903447,0.00016237,2]
[372944153,1752816632648,-500.0,0.00016237,2]
[372944154,1752816632658,-500.0,0.00016237,2]
[372944155,1752816632667,-500.0,0.00016237,2]
[372944156,1752816632677,-500.0,0.00016237,2]
[372944157,1752816632687,-464.64991153,0.00016237,2]
[372944158,1752816632698,-158.62697922,0.00016237,2]
[372944159,1752816632707,-241.22202868,0.00016237,2]
[372944160,1752816632717,-500.0,0.00016237,2]
[372944161,1752816632727,-353.87702749,0.00016237,2]
[372944162,1752816632736,-500.0,0.00016237,2]
[372944163,1752816632746,-277.82136224,0.00016237,2]
[372944164,1752816632755,-39198.18359614,0.00016238,2]
[372944167,1752816632774,-9350.4444149,0.00016238,2]
[372944170,1752816632786,-483.02148284,0.00016238,2]
[372944174,1752816632797,-699.856,0.00016238,2]
[372944177,1752816632808,-20916.58397772,0.00016238,2]
[372944181,1752816632819,-3105.09080408,0.00016238,2]
[372944184,1752816632831,-9179.3,0.00016238,2]
[372944187,1752816632842,-2568.12682041,0.00016238,2]
[372944190,1752816632852,-2996.87550775,0.00016238,2]
[372944193,1752816632865,-1250.40317626,0.00016238,2]
[372944195,1752816632876,-4700.06588095,0.00016238,2]
[372944197,1752816632887,-24115.8255094,0.00016238,2]
[372944265,1752816638262,-500.0,0.00016238,2]
[372944268,1752816638273,-1580.98448565,0.00016238,2]
[372944273,1752816638321,-9352.93178592,0.00016238,2]
[372944276,1752816638333,-15517.07947574,0.00016238,2]
[372944278,1752816638345,-3666.16085332,0.00016238,2]
[372944282,1752816638380,-12271.0957884,0.00016238,2]
[372944291,1752816638495,-208547.97044052,0.00016238,2]
[372944293,1752816638505,-6165.55311571,0.00016338,2]
[372944294,1752816638514,-964.42354691,0.00016338,2]
[372944295,1752816638525,-478.81036062,0.00016438,2]
[372944296,1752816638535,-529.90452754,0.00016438,2]
[372944297,1752816638545,-460.0,0.00016438,2]
[372944298,1752816638554,-460.0,0.00016438,2]
[372944299,1752816638563,-460.83771955,0.00016438,2]
[372944300,1752816638573,-460.0,0.00016438,2]
[372944301,1752816638582,-460.0,0.00016438,2]
[372944302,1752816638591,-460.0,0.00016438,2]
[372944303,1752816638600,-460.0,0.00016438,2]
[372944304,1752816638610,-460.0,0.00016438,2]
[372944305,1752816638621,-460.0,0.00016438,2]
[372944306,1752816638631,-258.65595581,0.00016438,2]
[372944307,1752816638640,-460.0,0.00016438,2]
[372944308,1752816638650,-460.0,0.00016438,2]
[372944309,1752816638659,-460.0,0.00016438,2]
[372944310,1752816638669,-460.0,0.00016438,2]
[372944311,1752816638678,-460.0,0.00016438,2]
[372944312,1752816638687,-490.47343035,0.00016438,2]
[372944313,1752816638696,-460.0,0.00016438,2]
[372944314,1752816638707,-460.0,0.00016438,2]
[372944315,1752816638717,-460.0,0.00016438,2]
[372944316,1752816638727,-460.0,0.00016438,2]
[372944317,1752816638736,-460.0,0.00016438,2]
[372944318,1752816638745,-460.0,0.00016438,2]
[372944319,1752816638755,-460.0,0.00016438,2]
[372944320,1752816638765,-460.0,0.00016438,2]
[372944321,1752816638774,-460.0,0.00016438,2]
[372944322,1752816638784,-460.0,0.00016438,2]
[372944323,1752816638794,-460.0,0.00016438,2]
[372944324,1752816638803,-460.0,0.00016438,2]
[372944325,1752816638813,-460.0,0.00016438,2]
[372944326,1752816638822,-460.0,0.00016438,2]
[372944327,1752816638832,-601.94,0.00016438,2]
[372944328,1752816638841,-471.69979971,0.00016438,2]
[372944329,1752816638851,-460.0,0.00016438,2]
[372944330,1752816638860,-460.0,0.00016438,2]
[372944331,1752816638871,-460.0,0.00016438,2]
[372944332,1752816638881,-460.0,0.00016438,2]
[372944333,1752816638890,-460.0,0.00016438,2]
[372944334,1752816638899,-460.0,0.00016438,2]
[372944335,1752816638908,-467.22837519,0.00016438,2]
[372944336,1752816638918,-460.0,0.00016438,2]
[372944337,1752816638927,-460.0,0.00016438,2]
[372944338,1752816638937,-460.0,0.00016438,2]
[372944339,1752816638947,-460.0,0.00016438,2]
[372944340,1752816638956,-460.0,0.00016438,2]
[372944341,1752816638966,-460.0,0.00016438,2]
[372944342,1752816638976,-460.0,0.00016438,2]
[372944343,1752816638985,-257.012157,0.00016438,2]
[372944344,1752816638995,-460.0,0.00016438,2]
[372944345,1752816639005,-460.0,0.00016438,2]
[372944346,1752816639015,-687.73,0.00016438,2]
[372944347,1752816639025,-307.15430074,0.00016438,2]
[372944348,1752816639035,-460.0,0.00016438,2]
[372944349,1752816639046,-460.0,0.00016438,2]
[372944350,1752816639055,-460.0,0.00016438,2]
[372944351,1752816639065,-460.0,0.00016438,2]
[372944352,1752816639074,-460.0,0.00016438,2]
[372944353,1752816639084,-460.0,0.00016438,2]
[372944354,1752816639094,-596.20970849,0.00016438,2]
[372944355,1752816639103,-605.94981198,0.00016438,2]
[372944356,1752816639113,-364.44,0.00016438,2]
[372944357,1752816639126,-460.0,0.00016438,2]
[372944358,1752816639136,-460.0,0.00016438,2]
[372944359,1752816639146,-265.17840848,0.00016438,2]
[372944360,1752816639155,-460.0,0.00016438,2]
[372944361,1752816639164,-395.19398574,0.00016438,2]
[372944362,1752816639175,-460.0,0.00016438,2]
[372944363,1752816639184,-460.0,0.00016438,2]
[372944364,1752816639194,-460.0,0.00016438,2]
[372944365,1752816639204,-591.7002241,0.00016438,2]
[372944366,1752816639213,-460.0,0.00016438,2]
[372944367,1752816639224,-460.0,0.00016438,2]
[372944368,1752816639233,-460.0,0.00016438,2]
[372944369,1752816639244,-549.32,0.00016438,2]
[372944370,1752816639254,-460.0,0.00016438,2]
[372944371,1752816639264,-460.0,0.00016438,2]
[372944372,1752816639273,-460.0,0.00016438,2]
[372944373,1752816639282,-460.0,0.00016438,2]
[372944374,1752816639292,-783.46,0.00016438,2]
[372944375,1752816639302,-586.81,0.00016438,2]
[372944376,1752816639311,-460.0,0.00016438,2]
[372944377,1752816639321,-460.0,0.00016438,2]
[372944378,1752816639331,-460.0,0.00016438,2]
[372944379,1752816639341,-460.0,0.00016438,2]
[372944380,1752816639351,-462.62464797,0.00016438,2]
[372944381,1752816639360,-460.0,0.00016438,2]
[372944382,1752816639372,-460.0,0.00016438,2]
[372944383,1752816639382,-460.0,0.00016438,2]
[372944384,1752816639391,-460.0,0.00016438,2]
[372944385,1752816639400,-460.0,0.00016438,2]
[372944386,1752816639411,-460.0,0.00016438,2]
[372944387,1752816639420,-500.0,0.00016438,2]
[372944388,1752816639429,-500.0,0.00016438,2]
[372944389,1752816639441,-500.0,0.00016438,2]
[372944390,1752816639453,-500.0,0.00016438,2]
[372944391,1752816639463,-500.0,0.00016438,2]
[372944392,1752816639473,-460.0,0.00016438,2]
[372944393,1752816639482,-460.0,0.00016438,2]
[372944394,1752816639492,-460.0,0.00016438,2]
[372944395,1752816639502,-460.0,0.00016438,2]
[372944396,1752816639511,-460.0,0.00016438,2]
[372944397,1752816639522,-277.47721017,0.00016438,2]
[372944398,1752816639532,-648.27,0.00016438,2]
[372944399,1752816639542,-500.0,0.00016438,2]
[372944400,1752816639552,-203.91007185,0.00016438,2]
[372944401,1752816639562,-460.0,0.00016438,2]
[372944402,1752816639572,-460.0,0.00016438,2]
[372944403,1752816639582,-460.0,0.00016438,2]
[372944404,1752816639591,-460.0,0.00016438,2]
[372944405,1752816639601,-460.0,0.00016438,2]
[372944406,1752816639612,-460.0,0.00016438,2]
[372944407,1752816639625,-460.0,0.00016438,2]
[372944408,1752816639635,-460.0,0.00016438,2]
[372944409,1752816639644,-460.0,0.00016438,2]
[372944410,1752816639654,-460.0,0.00016438,2]
[372944411,1752816639663,-460.0,0.00016438,2]
[372944412,1752816639672,-374.93497639,0.00016438,2]
[372944413,1752816639682,-460.0,0.00016438,2]
[372944414,1752816639692,-529.51,0.00016438,2]
[372944415,1752816639702,-460.0,0.00016438,2]
[372944416,1752816639711,-460.0,0.00016438,2]
[372944418,1752816639720,-460.0,0.00016438,2]
[372944419,1752816639730,-460.0,0.00016438,2]
[372944420,1752816639739,-460.0,0.00016438,2]
[372944421,1752816639749,-460.0,0.00016438,2]
[372944422,1752816639758,-3358.65,0.00016438,2]
[372944423,1752816639768,-4192.11,0.00016438,2]
[372944424,1752816639778,-460.0,0.00016438,2]
[372944425,1752816639787,-460.0,0.00016438,2]
[372944426,1752816639797,-460.0,0.00016438,2]
[372944427,1752816639807,-460.0,0.00016438,2]
[372944429,1752816639816,-460.0,0.00016438,2]
[372944430,1752816639826,-460.0,0.00016438,2]
[372944431,1752816639835,-460.0,0.00016438,2]
[372944432,1752816639845,-523.19,0.00016438,2]
[372944434,1752816639856,-460.0,0.00016438,2]
[372944436,1752816639868,-964.44,0.00016438,2]
[372944437,1752816639878,-460.0,0.00016438,2]
[372944438,1752816639888,-460.0,0.00016438,2]
[372944439,1752816639897,-574.68,0.00016438,2]
[372944440,1752816639907,-460.0,0.00016438,2]
[372944441,1752816639917,-460.0,0.00016438,2]
[372944442,1752816639929,-460.0,0.00016438,2]
[372944443,1752816639940,-460.0,0.00016438,2]
[372944444,1752816639949,-2412.41,0.00016438,2]
[372944445,1752816639959,-460.0,0.00016438,2]
[372944446,1752816639969,-460.0,0.00016438,2]
[372944447,1752816639979,-496.61,0.00016438,2]
[372944448,1752816639988,-486.38,0.00016438,2]
[372944449,1752816639998,-460.0,0.00016438,2]
[372944450,1752816640008,-460.0,0.00016438,2]
[372944451,1752816640018,-460.0,0.00016438,2]
[372944453,1752816640028,-460.0,0.00016438,2]
[372944455,1752816640037,-518.03,0.00016438,2]
[372944457,1752816640046,-460.0,0.00016438,2]
[372944459,1752816640056,-460.0,0.00016438,2]
[372944461,1752816640065,-460.0,0.00016438,2]
[372944463,1752816640075,-1539.29,0.00016438,2]
[372944465,1752816640085,-460.0,0.00016438,2]
[372944467,1752816640095,-460.0,0.00016438,2]
[372944469,1752816640104,-460.0,0.00016438,2]
[372944471,1752816640114,-461.62467188,0.00016438,2]
[372944473,1752816640127,-460.0,0.00016438,2]
[372944475,1752816640136,-460.0,0.00016438,2]
[372944477,1752816640145,-241.68684354,0.00016438,2]
[372944479,1752816640155,-2238.22,0.00016438,2]
[372944481,1752816640164,-2433.24,0.00016438,2]
[372944484,1752816640174,-460.0,0.00016438,2]
[372944486,1752816640184,-675.33,0.00016438,2]
[372944488,1752816640193,-536.81045949,0.00016438,2]
[372944489,1752816640203,-460.0,0.00016438,2]
[372944492,1752816640212,-460.0,0.00016438,2]
[372944494,1752816640222,-460.0,0.00016438,2]
[372944496,1752816640232,-462.53475854,0.00016438,2]
[372944497,1752816640241,-460.0,0.00016438,2]
[372944499,1752816640251,-579.54,0.00016438,2]
[372944500,1752816640260,-462.04588806,0.00016438,2]
[372944501,1752816640270,-460.0,0.00016438,2]
[372944502,1752816640280,-538.74,0.00016438,2]
[372944503,1752816640289,-460.0,0.00016438,2]
[372944504,1752816640299,-460.0,0.00016438,2]
[372944505,1752816640308,-943.02,0.00016438,2]
[372944506,1752816640317,-466.94,0.00016438,2]
[372944507,1752816640327,-918.64,0.00016438,2]
[372944508,1752816640336,-1605.52,0.00016438,2]
[372944509,1752816640345,-460.0,0.00016438,2]
[372944510,1752816640355,-463.03540546,0.00016438,2]
[372944511,1752816640364,-4480.58,0.00016438,2]
[372944512,1752816640377,-570.06412164,0.00016438,2]
[372944514,1752816640386,-460.0,0.00016438,2]
[372944516,1752816640396,-438.00977578,0.00016438,2]
[372944517,1752816640405,-460.0,0.00016438,2]
[372944518,1752816640416,-460.0,0.00016438,2]
[372944520,1752816640426,-460.0,0.00016438,2]
[372944522,1752816640438,-763.49,0.00016438,2]
[372944524,1752816640452,-619.74,0.00016438,2]
[372944526,1752816640462,-623.8,0.00016438,2]
[372944528,1752816640472,-460.0,0.00016438,2]
[372944530,1752816640481,-460.0,0.00016438,2]
[372944532,1752816640493,-460.0,0.00016438,2]
[372944534,1752816640503,-795.53,0.00016438,2]
[372944536,1752816640512,-460.0,0.00016438,2]
[372944538,1752816640522,-460.0,0.00016438,2]
[372944540,1752816640532,-589.41,0.00016438,2]
[372944542,1752816640541,-460.0,0.00016438,2]
[372944543,1752816640550,-1128.36,0.00016438,2]
[372944544,1752816640560,-460.0,0.00016438,2]
[372944545,1752816640569,-460.0,0.00016438,2]
[372944546,1752816640579,-460.0,0.00016438,2]
[372944547,1752816640589,-460.0,0.00016438,2]
[372944548,1752816640599,-460.0,0.00016438,2]
[372944549,1752816640608,-460.0,0.00016438,2]
[372944550,1752816640620,-460.0,0.00016438,2]
[372944551,1752816640790,-2137.63,0.00016438,2]
[372944553,1752816640801,-460.0,0.00016438,2]
[372944555,1752816640811,-460.0,0.00016438,2]
[372944557,1752816640821,-460.0,0.00016438,2]
[372944559,1752816640831,-460.0,0.00016438,2]
[372944561,1752816640840,-684.09,0.00016438,2]
[372944563,1752816640850,-549.22267384,0.00016438,2]
[372944565,1752816640859,-460.0,0.00016438,2]
[372944568,1752816640873,-460.0,0.00016438,2]
[372944570,1752816640882,-499.12,0.00016438,2]
[372944572,1752816640892,-462.97303259,0.00016438,2]
[372944574,1752816640902,-460.0,0.00016438,2]
[372944576,1752816640912,-460.0,0.00016438,2]
[372944578,1752816640922,-460.0,0.00016438,2]
[372944579,1752816640932,-460.0,0.00016438,2]
[372944582,1752816640942,-926.94,0.00016438,2]
[372944584,1752816640952,-460.0,0.00016438,2]
[372944585,1752816640961,-1597.15,0.00016438,2]
[372944588,1752816640971,-351.77446615,0.00016438,2]
[372944590,1752816640980,-580.70053603,0.00016438,2]
[372944591,1752816640990,-460.0,0.00016438,2]
[372944594,1752816640999,-1394.38,0.00016438,2]
[372944595,1752816641008,-2143.35,0.00016438,2]
[372944598,1752816641019,-460.0,0.00016438,2]
[372944600,1752816641028,-500.0,0.00016438,2]
[372944602,1752816641037,-500.0,0.00016473,2]
[372944604,1752816641047,-460.0,0.00016712,2]
[372944606,1752816641057,-460.0,0.00016712,2]
[372944608,1752816641067,-460.0,0.00016712,2]
[372944610,1752816641077,-461.42830635,0.00016712,2]
[372944612,1752816641087,-194.80513745,0.00016712,2]
[372944614,1752816641097,-460.0,0.00016712,2]
[372944616,1752816641107,-460.0,0.00016712,2]
[372944618,1752816641119,-460.0,0.00016712,2]
[372944620,1752816641128,-460.0,0.00016712,2]
[372944622,1752816641138,-460.0,0.00016712,2]
[372944624,1752816641148,-460.0,0.00016712,2]
[372944626,1752816641159,-460.0,0.00016712,2]
[372944628,1752816641169,-460.0,0.00016712,2]
[372944630,1752816641179,-460.0,0.00016712,2]
[372944632,1752816641188,-460.0,0.00016712,2]
[372944634,1752816641198,-460.0,0.00016712,2]
[372944636,1752816641207,-460.0,0.00016712,2]
[372944638,1752816641216,-460.0,0.00016712,2]
[372944640,1752816641226,-460.0,0.00016712,2]
[372944642,1752816641235,-460.0,0.00016712,2]
[372944644,1752816641244,-460.0,0.00016712,2]
[372944646,1752816641254,-460.0,0.00016712,2]
[372944648,1752816641263,-460.0,0.00016712,2]
[372944650,1752816641273,-460.0,0.00016712,2]
[372944652,1752816641282,-460.0,0.00016712,2]
[372944654,1752816641291,-292.89467807,0.00016712,2]
[372944656,1752816641300,-460.0,0.00016712,2]
[372944658,1752816641310,-460.0,0.00016712,2]
[372944660,1752816641320,-460.0,0.00016712,2]
[372944662,1752816641329,-460.0,0.00016712,2]
[372944664,1752816641339,-460.0,0.00016712,2]
[372944666,1752816641348,-460.0,0.00016712,2]
[372944668,1752816641358,-460.0,0.00016712,2]
[372944670,1752816641370,-460.0,0.00016712,2]
[372944672,1752816641380,-590.38328388,0.00016712,2]
[372944674,1752816641389,-687.73,0.00016712,2]
[372944676,1752816641398,-460.0,0.00016712,2]
[372944678,1752816641407,-245.41930482,0.00016712,2]
[372944680,1752816641416,-460.0,0.00016712,2]
[372944682,1752816641425,-460.0,0.00016712,2]
[372944683,1752816641435,-408.05161364,0.00016712,2]
[372944686,1752816641447,-460.0,0.00016712,2]
[372944688,1752816641457,-460.0,0.00016712,2]
[372944690,1752816641467,-460.0,0.00016712,2]
[372944692,1752816641476,-460.0,0.00016712,2]
[372944694,1752816641488,-460.0,0.00016712,2]
[372944696,1752816641499,-460.0,0.00016712,2]
[372944697,1752816641509,-549.32,0.00016712,2]
[372944699,1752816641519,-460.0,0.00016712,2]
[372944701,1752816641528,-460.0,0.00016712,2]
[372944703,1752816641537,-783.46,0.00016712,2]
[372944705,1752816641546,-586.81,0.00016712,2]
[372944707,1752816641555,-460.0,0.00016712,2]
[372944709,1752816641565,-218.28440608,0.00016712,2]
[372944712,1752816641574,-460.0,0.00016712,2]
[372944714,1752816641586,-460.0,0.00016712,2]
[372944716,1752816641595,-460.0,0.00016712,2]
[372944718,1752816641604,-460.0,0.00016712,2]
[372944720,1752816641613,-460.0,0.00016712,2]
[372944722,1752816641626,-460.0,0.00016712,2]
[372944723,1752816641635,-460.0,0.00016712,2]
[372944725,1752816641644,-648.27,0.00016712,2]
[372944727,1752816641656,-460.0,0.00016712,2]
[372944729,1752816641665,-460.0,0.00016712,2]
[372944730,1752816641674,-460.0,0.00016712,2]
[372944731,1752816641683,-460.0,0.00016712,2]
[372944732,1752816641693,-460.0,0.00016712,2]
[372944733,1752816641702,-460.0,0.00016712,2]
[372944734,1752816641711,-460.0,0.00016712,2]
[372944735,1752816641722,-460.0,0.00016712,2]
[372944736,1752816641731,-460.0,0.00016712,2]
[372944737,1752816641740,-529.51,0.00016712,2]
[372944738,1752816641749,-460.0,0.00016712,2]
[372944739,1752816641759,-452.69718059,0.00016712,2]
[372944740,1752816641768,-460.0,0.00016712,2]
[372944741,1752816641777,-3358.65,0.00016712,2]
[372944742,1752816641786,-4192.11,0.00016712,2]
[372944743,1752816641795,-460.0,0.00016712,2]
[372944744,1752816641804,-460.0,0.00016712,2]
[372944745,1752816641813,-460.0,0.00016712,2]
[372944746,1752816641823,-460.0,0.00016712,2]
[372944747,1752816641832,-460.0,0.00016712,2]
[372944748,1752816641841,-523.19,0.00016712,2]
[372944749,1752816641851,-964.44,0.00016712,2]
[372944750,1752816641860,-460.0,0.00016712,2]
[372944751,1752816641870,-460.0,0.00016712,2]
[372944752,1752816641879,-574.68,0.00016712,2]
[372944753,1752816641888,-460.0,0.00016712,2]
[372944754,1752816641897,-158.25,0.00016712,2]
[372944755,1752816641906,-2412.41,0.00016712,2]
[372944756,1752816641915,-460.0,0.00016712,2]
[372944757,1752816641924,-460.0,0.00016712,2]
[372944758,1752816641933,-496.61,0.00016712,2]
[372944759,1752816641941,-486.38,0.00016712,2]
[372944760,1752816641950,-460.0,0.00016712,2]
[372944761,1752816641959,-460.0,0.00016712,2]
[372944762,1752816641968,-460.0,0.00016712,2]
[372944763,1752816641978,-518.03,0.00016712,2]
[372944764,1752816641987,-460.0,0.00016712,2]
[372944765,1752816641996,-460.0,0.00016712,2]
[372944766,1752816642005,-460.0,0.00016712,2]
[372944767,1752816642014,-1539.29,0.00016712,2]
[372944768,1752816642024,-460.0,0.00016712,2]
[372944769,1752816642034,-460.0,0.00016712,2]
[372944770,1752816642043,-460.0,0.00016712,2]
[372944771,1752816642054,-460.0,0.00016712,2]
[372944772,1752816642063,-2238.22,0.00016712,2]
[372944773,1752816642073,-2433.24,0.00016712,2]
[372944774,1752816642082,-675.33,0.00016712,2]
[372944775,1752816642091,-460.0,0.00016712,2]
[372944776,1752816642100,-460.0,0.00016712,2]
[372944777,1752816642110,-579.54,0.00016712,2]
[372944778,1752816642121,-538.74,0.00016712,2]
[372944779,1752816642130,-460.0,0.00016712,2]
[372944780,1752816642139,-460.0,0.00016712,2]
[372944781,1752816642149,-943.02,0.00016712,2]
[372944782,1752816642159,-466.94,0.00016712,2]
[372944783,1752816642169,-918.64,0.00016712,2]
[372944784,1752816642179,-1605.52,0.00016712,2]
[372944785,1752816642190,-460.0,0.00016712,2]
[372944786,1752816642200,-4480.58,0.00016712,2]
[372944787,1752816642210,-580.49434951,0.00016712,2]
[372944788,1752816642220,-460.0,0.00016712,2]
[372944789,1752816642230,-263.7357182,0.00016712,2]
[372944790,1752816642240,-460.0,0.00016712,2]
[372944791,1752816642249,-619.74,0.00016712,2]
[372944792,1752816642259,-763.49,0.00016712,2]
[372944793,1752816642268,-623.8,0.00016712,2]
[372944794,1752816642278,-460.0,0.00016712,2]
[372944795,1752816642288,-460.0,0.00016712,2]
[372944796,1752816642297,-460.0,0.00016712,2]
[372944797,1752816642307,-795.53,0.00016712,2]
[372944798,1752816642317,-460.0,0.00016712,2]
[372944799,1752816642326,-589.41,0.00016712,2]
[372944800,1752816642336,-460.0,0.00016712,2]
[372944801,1752816642345,-1128.36,0.00016712,2]
[372944802,1752816642354,-460.0,0.00016712,2]
[372944803,1752816642364,-460.0,0.00016712,2]
[372944804,1752816642375,-460.0,0.00016712,2]
[372944805,1752816642384,-460.0,0.00016712,2]
[372944806,1752816642393,-460.0,0.00016712,2]
[372944807,1752816642403,-2137.63,0.00016712,2]
[372944808,1752816642412,-460.0,0.00016712,2]
[372944809,1752816642422,-592.47141717,0.00016712,2]
[372944810,1752816642431,-460.0,0.00016712,2]
[372944811,1752816642441,-460.0,0.00016712,2]
[372944812,1752816642454,-684.09,0.00016712,2]
[372944813,1752816642463,-460.0,0.00016712,2]
[372944814,1752816642472,-460.0,0.00016712,2]
[372944815,1752816642482,-499.12,0.00016712,2]
[372944816,1752816642493,-460.0,0.00016712,2]
[372944817,1752816642502,-460.0,0.00016712,2]
[372944818,1752816642512,-460.0,0.00016712,2]
[372944819,1752816642522,-460.0,0.00016712,2]
[372944820,1752816642532,-926.94,0.00016712,2]
[372944821,1752816642542,-460.0,0.00016712,2]
[372944822,1752816642551,-1597.15,0.00016712,2]
[372944823,1752816642561,-460.0,0.00016712,2]
[372944824,1752816642571,-1394.38,0.00016712,2]
[372944825,1752816642580,-2143.35,0.00016712,2]
[372944826,1752816642590,-460.0,0.00016712,2]
[372944827,1752816642599,-500.0,0.00016773,2]
[372944828,1752816642609,-287.0,0.00016818,2]
[372944829,1752816642621,-500.0,0.00016973,2]
[372944830,1752816642630,-503.42127867,0.00016973,2]
[372944831,1752816642640,-460.0,0.00016986,2]
[372944832,1752816642649,-460.0,0.00016986,2]
[372944833,1752816642659,-460.0,0.00016986,2]
[372944834,1752816642668,-460.0,0.00016986,2]
[372944835,1752816642678,-460.0,0.00016986,2]
[372944836,1752816642687,-460.0,0.00016986,2]
[372944837,1752816642697,-460.0,0.00016986,2]
[372944838,1752816642706,-460.0,0.00016986,2]
[372944839,1752816642715,-460.0,0.00016986,2]
[372944840,1752816642726,-464.11776942,0.00016986,2]
[372944841,1752816642739,-460.0,0.00016986,2]
[372944842,1752816642750,-460.0,0.00016986,2]
[372944843,1752816642761,-487.10523831,0.00016986,2]
[372944844,1752816642772,-460.0,0.00016986,2]
[372944845,1752816642781,-207.72306818,0.00016986,2]
[372944847,1752816642792,-460.0,0.00016986,2]
[372944848,1752816642801,-460.0,0.00016986,2]
[372944850,1752816642810,-460.0,0.00016986,2]
[372944851,1752816642820,-460.0,0.00016986,2]
[372944852,1752816642829,-460.0,0.00016986,2]
[372944853,1752816642839,-460.0,0.00016986,2]
[372944854,1752816642848,-460.0,0.00016986,2]
[372944855,1752816642858,-460.0,0.00016986,2]
[372944856,1752816642870,-460.0,0.00016986,2]
[372944858,1752816642881,-198.25473197,0.00016986,2]
[372944860,1752816642891,-460.0,0.00016986,2]
[372944862,1752816642900,-460.0,0.00016986,2]
[372944864,1752816642910,-460.0,0.00016986,2]
[372944866,1752816642919,-687.73,0.00016986,2]
[372944868,1752816642929,-460.0,0.00016986,2]
[372944870,1752816642938,-460.0,0.00016986,2]
[372944872,1752816642947,-460.0,0.00016986,2]
[372944873,1752816642959,-460.0,0.00016986,2]
[372944874,1752816642968,-460.0,0.00016986,2]